bitfinex/quotes_SOLUSD_20241220
["timestamp","ask_amount","ask_price","bid_price","bid_amount"]
[1734672930632,49.13440475,194.4,194.33,25.35752075]
[1734672931818,23.776884,194.4,194.34,25.35752075]
[1734672932137,49.13440475,194.4,194.33,25.35752075]
[1734672932644,25.35752075,194.42,194.35,25.35752075]
[1734672932931,25.35752075,194.44,194.37,25.35752075]
[1734672933137,25.35752075,194.45,194.38,25.35752075]
[1734672933525,25.35752075,194.44,194.37,25.35752075]
[1734672933707,25.35752075,194.42,194.35,25.35752075]
[1734672933912,25.35752075,194.42,194.31,2.37196367]
[1734672933913,25.35752075,194.4,194.33,25.35752075]
[1734672934128,25.35752075,194.38,194.31,26.95792075]
[1734672938325,49.13440475,194.37,194.31,1.6004]
[1734672938639,25.35752075,194.36,194.29,25.35752075]
[1734672939141,25.35752075,194.35,194.28,25.35752075]
[1734672939440,49.13440475,194.34,194.27,25.35752075]
[1734672939639,25.35752075,194.37,194.3,25.35752075]
[1734672939848,20.0,194.35,194.31,25.35752075]
[1734672940023,25.35752075,194.39,194.32,25.35752075]
[1734672940538,25.35752075,194.38,194.32,25.35752075]
[1734672940744,25.35752075,194.35,194.26,1.6512]
[1734672940936,25.35752075,194.34,194.27,25.35752075]
[1734672941246,25.35752075,194.36,194.29,25.35752075]
[1734672941433,25.35752075,194.37,194.3,25.35752075]
[1734672941636,25.35752075,194.36,194.29,25.35752075]
[1734672942519,23.776884,194.35,194.29,25.35752075]
[1734672942714,49.13440475,194.32,194.26,1.6512]
[1734672942948,23.776884,194.3,194.25,0.6492052]
[1734672943254,15.91330828,194.29,194.25,0.6492052]
[1734672943450,39.69019228,194.3,194.25,0.6492052]
[1734672943949,15.91330828,194.29,194.25,0.6492052]
[1734672944150,15.91330828,194.3,194.25,0.6492052]
[1734672944442,15.91330828,194.31,194.25,0.6492052]
[1734672944945,23.776884,194.3,194.25,0.6492052]
[1734672945146,45.46033051,194.32,194.25,0.6492052]
[1734672945630,25.46033051,194.3,194.25,0.6492052]
[1734672945826,23.776884,194.29,194.25,0.6492052]
[1734672947348,45.46033051,194.32,194.25,26.10953571]
[1734672947723,20.0,194.32,194.26,25.46033051]
[1734672948351,45.46033051,194.32,194.25,26.10953571]
[1734672948530,20.0,194.32,194.26,25.46033051]
[1734672949238,23.776884,194.31,194.25,26.10953571]
[1734672949555,49.23721451,194.31,194.25,0.6492052]
[1734672950440,25.46033051,194.3,194.25,0.6492052]
[1734672951142,45.46033051,194.32,194.25,26.10953571]
[1734672951956,25.46033051,194.33,194.26,25.46033051]
[1734672952123,25.46033051,194.38,194.31,25.46033051]
[1734672952325,25.46033051,194.4,194.33,25.46033051]
[1734672953460,25.46033051,194.39,194.32,25.46033051]
[1734672953658,25.46033051,194.38,194.31,25.46033051]
[1734672953831,25.46033051,194.37,194.3,25.46033051]
[1734672954434,25.46033051,194.38,194.31,25.46033051]
[1734672955055,23.776884,194.37,194.31,25.46033051]
[1734672955556,25.46033051,194.4,194.32,25.46033051]
[1734672955730,23.776884,194.39,194.33,25.46033051]
[1734672956130,25.46033051,194.39,194.32,25.46033051]
[1734672957057,25.46033051,194.39,194.31,25.46033051]
[1734672957357,49.23721451,194.36,194.29,25.46033051]
[1734672958227,49.23721451,194.36,194.28,33.19253051]
[1734672958427,25.46033051,194.34,194.27,25.46033051]
[1734672958648,49.23721451,194.33,194.25,26.10953571]
[1734672958849,49.23721451,194.33,194.26,25.46033051]
[1734672959058,25.46033051,194.35,194.28,25.46033051]
[1734672959360,25.46033051,194.37,194.29,25.46033051]
[1734672959557,23.776884,194.36,194.3,25.46033051]
[1734672959757,49.23721451,194.36,194.29,25.46033051]
[1734672960462,12.8602,194.4,194.31,25.46033051]
[1734672960664,49.23721451,194.36,194.28,25.46033051]
[1734672960969,23.776884,194.34,194.28,25.46033051]
[1734672961635,25.46033051,194.38,194.3,25.46033051]
[1734672961836,25.46033051,194.4,194.33,25.46033051]
[1734672962368,25.46033051,194.37,194.3,25.46033051]
[1734672962539,25.46033051,194.38,194.31,25.46033051]
[1734672962739,1.5711,194.43,194.33,25.46033051]
[1734672962740,25.46033051,194.4,194.33,25.46033051]
[1734672962963,25.46033051,194.37,194.3,25.46033051]
[1734672963151,25.46033051,194.36,194.29,25.46033051]
[1734672963349,25.46033051,194.37,194.3,25.46033051]
[1734672964366,23.776884,194.37,194.31,25.46033051]
[1734672964664,23.776884,194.37,194.25,1.42107868]
[1734672964665,25.46033051,194.41,194.34,25.46033051]
[1734672964868,20.0,194.38,194.33,25.46033051]
[1734672965068,35.89866429,194.38,194.31,15.89866429]
[1734672965275,15.89866429,194.36,194.29,15.89866429]
[1734672965476,15.89866429,194.36,194.28,15.89866429]
[1734672965636,15.89866429,194.35,194.28,15.89866429]
[1734672966169,39.67554829,194.34,194.27,15.89866429]
[1734672966345,23.776884,194.34,194.28,15.89866429]
[1734672967049,35.89866429,194.36,194.28,15.89866429]
[1734672967257,15.89866429,194.35,194.28,15.89866429]
[1734672967443,15.89866429,194.35,194.27,15.89866429]
[1734672967649,35.89866429,194.36,194.28,15.89866429]
[1734672967867,35.89866429,194.36,194.29,15.89866429]
[1734672968373,15.89866429,194.37,194.29,15.89866429]
[1734672968674,23.776884,194.36,194.29,15.89866429]
[1734672970444,15.89866429,194.35,194.27,15.89866429]
[1734672970671,23.776884,194.32,194.25,16.54786949]
[1734672970977,15.89866429,194.31,194.25,0.6492052]
[1734672972849,39.67554829,194.32,194.25,0.6492052]
[1734672973976,15.89866429,194.29,194.25,0.6492052]
[1734672974269,15.89866429,194.28,194.25,0.6492052]
[1734672974568,23.776884,194.28,194.25,0.6492052]
[1734672974866,15.89866429,194.29,194.25,0.6492052]
[1734672975072,35.89866429,194.29,194.25,0.6492052]
[1734672975272,15.89866429,194.26,194.25,0.6492052]
[1734672975449,39.67554829,194.26,194.25,0.6492052]
[1734672976065,23.776884,194.26,194.25,0.6492052]
[1734672976273,39.67554829,194.26,194.25,0.6492052]
[1734672978885,39.67554829,194.26,194.07,134.8]
[1734672978886,23.776884,194.12,194.05,8.65494119]
[1734672979083,23.776884,194.08,194.06,8.00573599]
[1734672979877,39.67554829,194.07,194.06,8.00573599]
[1734672980581,39.67554829,194.07,194.05,0.6492052]
[1734672980582,23.776884,194.06,194.05,0.6492052]
[1734672980948,49.30705304,194.06,194.05,0.6492052]
[1734672981348,20.0,194.09,194.05,0.6492052]
[1734672981549,23.776884,194.09,194.05,0.6492052]
[1734672982767,49.30705304,194.09,194.05,0.6492052]
[1734672982979,45.53016904,194.1,194.05,0.6492052]
[1734672983159,25.53016904,194.11,194.05,0.6492052]
[1734672983583,23.776884,194.1,194.05,0.6492052]
[1734672984183,49.30705304,194.1,194.05,0.6492052]
[1734672984991,25.53016904,194.09,194.05,0.6492052]
[1734672985484,25.53016904,194.08,194.05,0.6492052]
[1734672986054,23.776884,194.08,194.05,0.6492052]
[1734672986956,49.30705304,194.08,194.05,0.6492052]
[1734672987681,23.776884,194.08,194.05,0.6492052]
[1734672990379,49.30705304,194.08,194.05,0.6492052]
[1734672990860,49.30705304,194.06,194.05,0.6492052]
[1734672994395,23.776884,194.06,194.05,0.6492052]
[1734672996407,49.30705304,194.06,194.05,0.6492052]
[1734672996680,23.776884,194.06,194.05,0.6492052]
[1734672997466,49.30705304,194.06,194.05,0.6492052]
[1734672998669,49.30705304,194.06,193.9,12.8926]
[1734672998670,43.776884,194.02,193.91,1.5181]
[1734672998976,23.776884,193.97,193.91,27.04826904]
[1734672999175,23.776884,193.97,193.92,25.53016904]
[1734672999576,20.0,194.02,193.89,6.3469]
[1734672999577,25.53016904,193.95,193.89,6.3469]
[1734672999775,23.776884,193.98,193.89,6.3469]
[1734672999776,25.53016904,193.94,193.89,6.3469]
[1734673000380,23.776884,193.93,193.89,6.3469]
[1734673000587,49.30705304,193.93,193.89,6.3469]
[1734673000905,23.776884,193.93,193.87,25.53016904]
[1734673001081,15.97267601,193.96,193.88,15.97267601]
[1734673001404,23.776884,193.92,193.86,1.5445]
[1734673001704,15.97267601,193.9,193.86,1.5445]
[1734673002397,23.776884,193.9,193.86,1.5445]
[1734673003382,15.97267601,193.9,193.86,1.5445]
[1734673003584,23.776884,193.91,193.86,1.5445]
[1734673003904,39.74956001,193.91,193.86,1.5445]
[1734673004202,15.97267601,193.9,193.86,1.5445]
[1734673004411,39.74956001,193.91,193.86,1.5445]
[1734673004999,15.97267601,193.93,193.86,17.51717601]
[1734673005215,15.97267601,193.95,193.88,15.97267601]
[1734673005393,15.97267601,193.97,193.9,15.97267601]
[1734673006105,15.97267601,193.98,193.9,15.97267601]
[1734673006411,15.97267601,194.0,193.93,15.97267601]
[1734673006709,15.97267601,194.0,193.92,15.97267601]
[1734673007112,25.54172716,194.0,193.93,25.54172716]
[1734673007289,25.54172716,194.01,193.93,25.54172716]
[1734673007613,25.54172716,194.01,193.94,6.6202]
[1734673008315,25.54172716,194.01,193.94,32.16192716]
[1734673008887,25.54172716,194.02,193.95,25.54172716]
[1734673010225,25.54172716,193.99,193.94,6.6202]
[1734673011036,49.31861116,193.98,193.94,6.6202]
[1734673011214,25.54172716,193.98,193.9,25.54172716]
[1734673011535,25.54172716,193.99,193.91,25.54172716]
[1734673013004,25.54172716,193.99,193.92,25.54172716]
[1734673013720,25.54172716,194.01,193.94,25.54172716]
[1734673014140,25.54172716,194.03,193.95,25.54172716]
[1734673014452,25.54172716,194.02,193.94,25.54172716]
[1734673015030,25.54172716,194.02,193.95,1.5439]
[1734673015423,25.54172716,194.0,193.95,1.5439]
[1734673016017,49.31861116,194.01,193.95,1.5439]
[1734673018026,25.54172716,194.02,193.95,1.5439]
[1734673020138,49.31861116,194.01,193.95,1.5439]
[1734673020429,25.54172716,194.0,193.95,1.5439]
[1734673020608,23.776884,194.01,193.95,1.5439]
[1734673021343,23.776884,194.01,193.94,25.54172716]
[1734673022010,25.54172716,194.0,193.92,25.54172716]
[1734673022517,23.776884,193.97,193.89,33.68692716]
[1734673022907,25.54172716,194.0,193.93,25.54172716]
[1734673023107,25.54172716,194.04,193.97,25.54172716]
[1734673023341,32.95083726,194.1,193.98,25.54172716]
[1734673023342,25.54172716,194.05,193.98,25.54172716]
[1734673023643,1.44860608,194.12,194.0,25.54172716]
[1734673023644,25.54172716,194.07,194.0,25.54172716]
[1734673024005,1.4704,194.13,193.99,25.54172716]
[1734673024006,25.54172716,194.06,193.99,25.54172716]
[1734673025039,25.54172716,194.07,194.0,25.54172716]
[1734673025948,23.776884,194.06,193.99,25.54172716]
[1734673026652,23.776884,194.06,194.0,25.54172716]
[1734673027029,23.776884,194.06,194.0,15.95168095]
[1734673027231,51.99972795,194.2,194.03,15.95168095]
[1734673027232,15.95168095,194.11,194.03,15.95168095]
[1734673027643,15.95168095,194.12,194.05,15.95168095]
[1734673028054,15.95168095,194.13,194.06,15.95168095]
[1734673028634,15.95168095,194.14,194.07,15.95168095]
[1734673029365,15.95168095,194.14,194.0,16.72460033]
[1734673029366,15.95168095,194.13,194.05,15.95168095]
[1734673029655,15.95168095,194.13,194.06,15.95168095]
[1734673030084,23.776884,194.13,194.07,15.95168095]
[1734673030275,7.97378536,194.22,194.1,15.95168095]
[1734673030465,15.95168095,194.19,194.12,15.95168095]
[1734673030764,15.95168095,194.15,194.08,15.95168095]
[1734673031135,15.95168095,194.14,194.07,15.95168095]
[1734673031436,15.95168095,194.16,194.08,15.95168095]
[1734673031939,15.95168095,194.18,194.1,15.95168095]
[1734673032151,7.4929,194.23,194.12,15.95168095]
[1734673032351,3.0359619,194.25,194.06,12.8826]
[1734673032352,15.95168095,194.22,194.14,15.95168095]
[1734673032560,15.95168095,194.22,194.15,15.95168095]
[1734673033360,15.95168095,194.23,194.15,15.95168095]
[1734673033538,15.95168095,194.23,194.16,15.95168095]
[1734673033741,15.95168095,194.23,194.15,15.95168095]
[1734673034158,15.95168095,194.22,194.15,15.95168095]
[1734673034470,39.72856495,194.18,194.13,1.5964]
[1734673034765,15.95168095,194.22,194.15,15.95168095]
[1734673035837,15.95168095,194.25,194.18,15.95168095]
[1734673036065,15.95168095,194.26,194.19,15.95168095]
[1734673036238,15.95168095,194.27,194.2,15.95168095]
[1734673036439,15.95168095,194.24,194.17,15.95168095]
[1734673037034,19.4631,194.32,194.16,20.0]
[1734673037035,15.95168095,194.26,194.16,20.0]
[1734673037232,15.95168095,194.26,194.18,15.95168095]
[1734673038237,15.95168095,194.24,194.17,15.95168095]
[1734673038662,23.776884,194.23,194.18,15.95168095]
[1734673038988,15.95168095,194.23,194.16,15.95168095]
[1734673039154,15.95168095,194.22,194.15,15.95168095]
[1734673039349,15.95168095,194.2,194.13,23.74278095]
[1734673039664,23.776884,194.19,194.13,23.74278095]
[1734673039968,23.776884,194.19,194.14,15.95168095]
[1734673040145,23.776884,194.2,194.14,15.95168095]
[1734673040463,23.776884,194.23,194.17,15.95168095]
[1734673040644,23.776884,194.23,194.13,7.7911]
[1734673040645,23.776884,194.24,194.18,15.95168095]
[1734673041374,23.776884,194.24,194.17,15.95168095]
[1734673041583,15.95168095,194.23,194.16,15.95168095]
[1734673041877,39.72856495,194.21,194.14,15.95168095]
[1734673042045,15.95168095,194.21,194.14,15.95168095]
[1734673042247,23.776884,194.2,194.14,15.95168095]
[1734673043157,23.776884,194.2,194.15,15.95168095]
[1734673043357,15.95168095,194.24,194.17,15.95168095]
[1734673043580,23.776884,194.24,194.18,15.95168095]
[1734673043876,15.95168095,194.24,194.17,15.95168095]
[1734673044069,15.95168095,194.3,194.15,15.95168095]
[1734673044070,39.72856495,194.23,194.15,15.95168095]
[1734673044267,39.72856495,194.23,194.16,15.95168095]
[1734673044452,23.776884,194.23,194.17,15.95168095]
[1734673044651,15.95168095,194.27,194.2,15.95168095]
[1734673044855,15.95168095,194.28,194.21,15.95168095]
[1734673045271,15.95168095,194.29,194.22,15.95168095]
[1734673045877,15.95168095,194.31,194.23,15.95168095]
[1734673046374,15.95168095,194.31,194.24,15.95168095]
[1734673046559,1.48835719,194.34,194.25,15.95168095]
[1734673046759,7.59,194.37,194.27,15.95168095]
[1734673046953,15.95168095,194.34,194.27,15.95168095]
[1734673047189,15.95168095,194.34,194.26,15.95168095]
[1734673047376,15.95168095,194.33,194.26,15.95168095]
[1734673047680,7.59,194.37,194.27,15.95168095]
[1734673047681,15.95168095,194.34,194.27,15.95168095]
[1734673048081,23.776884,194.33,194.27,15.95168095]
[1734673048279,15.95168095,194.35,194.27,15.95168095]
[1734673048481,15.95168095,194.35,194.28,15.95168095]
[1734673048782,15.95168095,194.35,194.23,13.64334009]
[1734673048783,15.95168095,194.36,194.3,15.95168095]
[1734673048981,25.44165398,194.38,194.31,25.44165398]
[1734673049477,25.44165398,194.37,194.3,25.44165398]
[1734673050484,25.44165398,194.38,194.3,25.44165398]
[1734673050684,23.776884,194.37,194.3,25.44165398]
[1734673051668,49.21853798,194.37,194.29,25.44165398]
[1734673052012,49.21853798,194.33,194.26,25.44165398]
[1734673052562,25.44165398,194.32,194.25,45.44165398]
[1734673052775,25.44165398,194.32,194.25,25.44165398]
[1734673053486,25.44165398,194.3,194.23,25.44165398]
[1734673053683,23.776884,194.29,194.22,33.39955398]
[1734673053988,49.21853798,194.29,194.22,33.39955398]
[1734673054300,25.44165398,194.28,194.22,7.9579]
[1734673054476,12.8637,194.35,194.22,1.6464]
[1734673054477,49.21853798,194.27,194.22,1.6464]
[1734673054971,25.44165398,194.29,194.22,1.6464]
[1734673055172,25.44165398,194.29,194.22,27.08805398]
[1734673055585,25.44165398,194.29,194.22,1.6464]
[1734673055769,49.21853798,194.28,194.22,1.6464]
[1734673056184,25.44165398,194.27,194.22,1.6464]
[1734673056378,23.776884,194.28,194.22,1.6464]
[1734673056570,23.776884,194.3,194.24,25.44165398]
[1734673056779,25.44165398,194.34,194.27,25.44165398]
[1734673057580,12.8611,194.39,194.24,20.0]
[1734673057787,25.44165398,194.34,194.27,25.44165398]
[1734673058085,12.8611,194.39,194.28,25.44165398]
[1734673058086,25.44165398,194.35,194.28,25.44165398]
[1734673058291,25.44165398,194.36,194.29,25.44165398]
[1734673059582,49.21853798,194.35,194.28,25.44165398]
[1734673059762,25.44165398,194.32,194.25,25.44165398]
[1734673060598,25.44165398,194.3,194.23,25.44165398]
[1734673060763,23.776884,194.35,194.26,25.44165398]
[1734673061085,25.44165398,194.34,194.27,25.44165398]
[1734673061590,25.44165398,194.33,194.26,25.44165398]
[1734673061804,25.44165398,194.35,194.28,25.44165398]
[1734673062985,25.44165398,194.34,194.27,25.44165398]
[1734673063197,38.30195398,194.4,194.26,25.44165398]
[1734673063198,25.44165398,194.33,194.26,25.44165398]
[1734673064278,25.44165398,194.34,194.27,25.44165398]
[1734673064777,25.44165398,194.35,194.27,25.44165398]
[1734673065077,23.776884,194.34,194.27,25.44165398]
[1734673065673,25.44165398,194.35,194.28,25.44165398]
[1734673066378,45.44165398,194.38,194.31,25.44165398]
[1734673066588,25.44165398,194.39,194.32,25.44165398]
[1734673067401,25.44165398,194.44,194.37,25.44165398]
[1734673067574,25.44165398,194.44,194.33,0.7717848]
[1734673067575,25.44165398,194.46,194.39,25.44165398]
[1734673067782,25.44165398,194.47,194.4,25.44165398]
[1734673067990,12.8527,194.52,194.41,25.44165398]
[1734673067991,25.44165398,194.48,194.41,25.44165398]
[1734673068164,25.44165398,194.49,194.42,25.44165398]
[1734673068371,25.44165398,194.47,194.4,25.44165398]
[1734673068804,25.44165398,194.48,194.41,25.44165398]
[1734673069171,25.44165398,194.47,194.4,25.44165398]
[1734673070675,25.44165398,194.48,194.41,25.44165398]
[1734673070875,49.21853798,194.47,194.4,25.44165398]
[1734673071082,25.44165398,194.47,194.4,25.44165398]
[1734673071381,25.44165398,194.48,194.41,25.44165398]
[1734673071593,25.44165398,194.49,194.42,25.44165398]
[1734673072077,25.44165398,194.5,194.43,25.44165398]
[1734673072291,25.44165398,194.52,194.45,25.44165398]
[1734673072597,25.44165398,194.53,194.46,25.44165398]
[1734673072971,15.87664342,194.53,194.46,15.87664342]
[1734673073869,15.87664342,194.53,194.43,1.5699]
[1734673074076,15.87664342,194.52,194.45,15.87664342]
[1734673074295,15.87664342,194.53,194.46,15.87664342]
[1734673075166,15.87664342,194.54,194.47,15.87664342]
[1734673075373,23.776884,194.54,194.49,15.87664342]
[1734673075800,15.87664342,194.57,194.5,15.87664342]
[1734673075978,15.87664342,194.59,194.52,15.87664342]
[1734673076306,15.87664342,194.62,194.54,17.40854342]
[1734673076481,15.87664342,194.64,194.54,17.40854342]
[1734673076808,15.87664342,194.65,194.54,17.40854342]
[1734673077025,25.37228481,194.65,194.54,46.90418481]
[1734673077191,25.37228481,194.66,194.54,47.67493459]
[1734673077515,25.37228481,194.67,194.56,20.0]
[1734673077798,25.37228481,194.68,194.61,25.37228481]
[1734673077970,25.37228481,194.69,194.62,25.37228481]
[1734673079111,25.37228481,194.67,194.6,25.37228481]
[1734673079912,25.37228481,194.68,194.61,25.37228481]
[1734673080110,23.776884,194.67,194.61,25.37228481]
[1734673080608,25.37228481,194.68,194.62,25.37228481]
[1734673081197,25.37228481,194.71,194.64,25.37228481]
[1734673081496,6.3711,194.75,194.66,25.37228481]
[1734673081497,25.37228481,194.72,194.66,25.37228481]
[1734673082003,25.37228481,194.68,194.61,25.37228481]
[1734673082301,13.4874052,194.74,194.6,25.37228481]
[1734673082302,25.37228481,194.67,194.6,25.37228481]
[1734673082813,23.776884,194.66,194.59,25.37228481]
[1734673083021,49.14916881,194.66,194.59,25.37228481]
[1734673083514,0.6492052,194.74,194.65,25.37228481]
[1734673083815,26.02149001,194.74,194.67,25.37228481]
[1734673084003,0.6492052,194.74,194.69,25.37228481]
[1734673086112,0.6492052,194.74,194.65,2.39734826]
[1734673086307,0.6492052,194.74,194.7,25.37228481]
[1734673087324,0.6492052,194.74,194.72,25.37228481]
[1734673087822,0.6492052,194.74,194.71,25.37228481]
[1734673088321,0.6492052,194.74,194.68,25.37228481]
[1734673088514,0.6492052,194.74,194.65,1.627]
[1734673088515,25.37228481,194.71,194.65,26.99928481]
[1734673088711,0.6492052,194.74,194.68,25.37228481]
[1734673088916,0.6492052,194.74,194.71,25.37228481]
[1734673089509,0.6492052,194.74,194.72,25.37228481]
[1734673090015,0.6492052,194.74,194.71,25.37228481]
[1734673090539,0.6492052,194.74,194.72,25.37228481]
[1734673090739,0.6492052,194.74,194.73,25.37228481]
[1734673092444,0.6492052,194.74,194.72,25.37228481]
[1734673092606,0.6492052,194.74,194.7,25.37228481]
[1734673092799,0.6492052,194.74,194.69,25.37228481]
[1734673094003,25.37228481,194.73,194.66,25.37228481]
[1734673094215,49.14916881,194.73,194.66,25.37228481]
[1734673094609,25.37228481,194.72,194.65,26.99928481]
[1734673094810,49.14916881,194.73,194.65,26.99928481]
[1734673095012,0.6492052,194.74,194.67,25.37228481]
[1734673095293,26.02149001,194.74,194.67,25.37228481]
[1734673095495,49.14916881,194.73,194.65,26.99928481]
[1734673096229,49.14916881,194.73,194.66,25.37228481]
[1734673096594,25.37228481,194.7,194.62,25.37228481]
[1734673096900,25.37228481,194.7,194.61,1.6581]
[1734673096901,25.37228481,194.67,194.61,1.6581]
[1734673097103,25.37228481,194.67,194.6,25.37228481]
[1734673097545,25.37228481,194.64,194.57,25.37228481]
[1734673097701,25.37228481,194.63,194.55,54.2576289]
[1734673098024,25.37228481,194.63,194.56,25.37228481]
[1734673098413,23.776884,194.61,194.54,25.37228481]
[1734673099422,23.776884,194.61,194.55,25.37228481]
[1734673100027,23.776884,194.62,194.55,25.37228481]
[1734673100221,49.14916881,194.62,194.55,25.37228481]
[1734673100421,25.37228481,194.61,194.54,25.37228481]
[1734673101930,49.14916881,194.62,194.55,25.37228481]
[1734673102120,25.37228481,194.67,194.59,25.37228481]
[1734673102315,25.37228481,194.67,194.6,25.37228481]
[1734673102919,25.37228481,194.65,194.58,25.37228481]
[1734673103229,25.37228481,194.61,194.54,25.37228481]
[1734673103412,25.37228481,194.61,194.53,31.37318481]
[1734673103733,25.37228481,194.58,194.52,1.6581]
[1734673104037,25.37228481,194.56,194.48,33.13138481]
[1734673104433,25.37228481,194.55,194.48,33.13138481]
[1734673104611,25.37228481,194.55,194.48,7.7591]
[1734673104817,25.37228481,194.51,194.44,25.37228481]
[1734673105023,25.37228481,194.51,194.43,33.52668481]
[1734673105223,25.37228481,194.51,194.44,25.37228481]
[1734673105423,49.14916881,194.52,194.44,25.37228481]
[1734673106123,25.37228481,194.51,194.43,33.52668481]
[1734673107250,25.37228481,194.55,194.48,25.37228481]
[1734673107619,23.776884,194.54,194.48,25.37228481]
[1734673107819,49.14916881,194.54,194.47,25.37228481]
[1734673108318,25.37228481,194.52,194.45,25.37228481]
[1734673108733,25.37228481,194.51,194.44,25.37228481]
[1734673109058,25.37228481,194.52,194.45,25.37228481]
[1734673110043,25.37228481,194.52,194.43,8.1544]
[1734673110044,23.776884,194.55,194.48,25.37228481]
[1734673110438,23.776884,194.55,194.49,25.37228481]
[1734673110956,1.6372,194.61,194.44,0.77125403]
[1734673110957,25.37228481,194.57,194.5,25.37228481]
[1734673111258,25.37228481,194.58,194.46,20.77100539]
[1734673111463,25.37228481,194.59,194.52,25.37228481]
[1734673111763,6.262,194.64,194.54,25.37228481]
[1734673111764,25.37228481,194.61,194.54,25.37228481]
[1734673111938,25.37228481,194.59,194.52,25.37228481]
[1734673112134,25.37228481,194.58,194.51,25.37228481]
[1734673113246,25.37228481,194.59,194.52,25.37228481]
[1734673113622,25.37228481,194.61,194.54,25.37228481]
[1734673113836,23.776884,194.61,194.55,25.37228481]
[1734673115547,25.37228481,194.63,194.56,25.37228481]
[1734673117220,12.8427,194.67,194.53,6.222]
[1734673117221,25.37228481,194.61,194.54,25.37228481]
[1734673117428,25.37228481,194.6,194.53,31.59428481]
[1734673119926,25.37228481,194.59,194.53,6.222]
[1734673120267,25.37228481,194.59,194.52,25.37228481]
[1734673120428,25.37228481,194.6,194.53,25.37228481]
[1734673121263,25.37228481,194.61,194.54,25.37228481]
[1734673121857,25.37228481,194.63,194.57,25.37228481]
[1734673122067,25.37228481,194.65,194.58,25.37228481]
[1734673122265,25.37228481,194.66,194.6,25.37228481]
[1734673122433,25.37228481,194.67,194.6,25.37228481]
[1734673122759,25.37228481,194.68,194.62,25.37228481]
[1734673123760,25.37228481,194.72,194.65,25.37228481]
[1734673124151,25.37228481,194.73,194.66,25.37228481]
[1734673124353,26.02149001,194.74,194.67,25.37228481]
[1734673125281,26.02149001,194.74,194.64,31.95638481]
[1734673125282,25.37228481,194.71,194.64,31.95638481]
[1734673125457,25.37228481,194.7,194.64,6.5841]
[1734673125641,25.37228481,194.71,194.64,31.95638481]
[1734673126475,25.37228481,194.72,194.65,25.37228481]
[1734673128264,26.02149001,194.74,194.67,25.37228481]
[1734673128962,0.6492052,194.74,194.69,25.37228481]
[1734673129162,0.6492052,194.74,194.71,25.37228481]
[1734673130366,0.6492052,194.74,194.73,25.37228481]
[1734673133769,0.6492052,194.74,194.72,25.37228481]
[1734673133971,0.6492052,194.74,194.71,25.37228481]
[1734673135360,0.6492052,194.74,194.7,25.37228481]
[1734673135682,0.6492052,194.74,194.71,25.37228481]
[1734673135847,0.6492052,194.74,194.72,25.37228481]
[1734673136055,0.6492052,194.74,194.73,25.37228481]
[1734673136667,0.6492052,194.74,194.72,25.37228481]
[1734673136868,0.6492052,194.74,194.69,1.5341]
[1734673137169,25.37228481,194.71,194.64,10.14247099]
[1734673137365,25.37228481,194.7,194.64,1.536]
[1734673137874,25.37228481,194.7,194.63,25.37228481]
[1734673140787,25.37228481,194.71,194.64,25.37228481]
[1734673140950,49.14916881,194.72,194.65,25.37228481]
[1734673141148,25.37228481,194.73,194.66,25.37228481]
[1734673141352,0.6492052,194.74,194.69,25.37228481]
[1734673141562,0.6492052,194.74,194.68,25.37228481]
[1734673141767,26.02149001,194.74,194.67,25.37228481]
[1734673141971,25.37228481,194.73,194.66,25.37228481]
[1734673142176,25.37228481,194.73,194.65,25.37228481]
[1734673142370,25.37228481,194.73,194.66,25.37228481]
[1734673142549,25.37228481,194.73,194.65,25.37228481]
[1734673142753,25.37228481,194.73,194.66,25.37228481]
[1734673143778,25.37228481,194.71,194.64,25.37228481]
[1734673143981,25.37228481,194.7,194.63,25.37228481]
[1734673144684,25.37228481,194.7,194.62,25.37228481]
[1734673146180,25.37228481,194.67,194.6,25.37228481]
[1734673146478,25.37228481,194.64,194.57,25.37228481]
[1734673148375,49.14916881,194.63,194.56,54.4001738]
[1734673148687,25.37228481,194.62,194.55,26.90108481]
[1734673148855,49.14916881,194.63,194.56,25.37228481]
[1734673150185,23.776884,194.61,194.55,1.5288]
[1734673151861,25.37228481,194.62,194.55,26.90108481]
[1734673152083,25.37228481,194.66,194.59,25.37228481]
[1734673152685,25.37228481,194.67,194.6,25.37228481]
[1734673153585,23.776884,194.66,194.6,25.37228481]
[1734673153786,23.776884,194.66,194.57,25.37228481]
[1734673153787,25.37228481,194.64,194.57,25.37228481]
[1734673153962,25.37228481,194.63,194.56,25.37228481]
[1734673154886,25.37228481,194.63,194.55,26.90108481]
[1734673155190,25.37228481,194.61,194.55,1.5288]
[1734673156386,25.37228481,194.62,194.55,26.90108481]
[1734673157171,25.37228481,194.64,194.57,25.37228481]
[1734673157485,25.37228481,194.64,194.56,25.37228481]
[1734673158195,25.37228481,194.61,194.54,31.39088481]
[1734673159287,25.37228481,194.59,194.52,25.37228481]
[1734673160064,25.37228481,194.58,194.51,26.96878481]